bitfinex/quotes_SOLUSD_20240622
["timestamp","ask_amount","ask_price","bid_price","bid_amount"]
[1719017734290,9.45,133.67,133.65,7.4822]
[1719017734666,9.45,133.68,133.65,7.4822]
[1719017735466,8.3598401,133.69,133.64,7.4825]
[1719017735967,0.8798401,133.69,133.64,7.4825]
[1719017736286,0.8798401,133.69,133.65,7.4821]
[1719017737687,0.8798401,133.69,133.63,0.34]
[1719017737888,0.8798401,133.69,133.68,7.4805]
[1719017738071,0.8798401,133.69,133.68,23.7339]
[1719017738990,0.8798401,133.69,133.68,42.4352]
[1719017740693,20.0,133.75,133.72,7.4782]
[1719017740906,27.4761,133.76,133.72,7.4782]
[1719017741402,27.4761,133.76,133.71,7.8186]
[1719017742395,27.4761,133.76,133.72,7.4782]
[1719017742603,18.6824,133.82,133.71,0.34]
[1719017742802,20.0,133.81,133.71,0.34]
[1719017742978,7.4747,133.79,133.74,7.477]
[1719017743178,20.0,133.81,133.73,7.8175]
[1719017743179,7.475,133.78,133.73,7.8175]
[1719017743903,7.4746,133.79,133.74,7.477]
[1719017745497,7.4741,133.8,133.75,7.4764]
[1719017745700,20.0,133.79,133.75,7.4764]
[1719017746883,7.4741,133.8,133.75,7.4764]
[1719017748003,7.4741,133.8,133.74,16.3321]
[1719017748004,7.4749,133.78,133.74,16.3321]
[1719017748301,18.686,133.79,133.71,16.3321]
[1719017748608,27.4756,133.77,133.72,7.478]
[1719017748993,7.476,133.76,133.72,7.478]
[1719017749188,27.4757,133.77,133.72,7.478]
[1719017751010,27.4757,133.77,133.73,7.4776]
[1719017751717,20.0,133.77,133.73,7.4776]
[1719017753212,7.4745,133.79,133.74,7.4768]
[1719017753508,35.7439,133.8,133.72,18.8644]
[1719017753709,20.0,133.79,133.73,0.17]
[1719017754407,20.0,133.79,133.76,7.476]
[1719017754592,7.4735,133.81,133.76,7.476]
[1719017754593,20.0,133.8,133.76,7.476]
[1719017754908,20.0,133.8,133.77,7.4754]
[1719017755207,7.4729,133.82,133.75,6.457]
[1719017755411,20.0,133.81,133.76,0.34]
[1719017755626,20.0,133.81,133.78,7.4746]
[1719017755997,20.0,133.82,133.78,7.4746]
[1719017756209,7.4736,133.81,133.77,16.3321]
[1719017756394,7.4736,133.81,133.77,23.8075]
[1719017756714,20.0,133.82,133.77,16.3321]
[1719017756915,7.473,133.82,133.77,23.8073]
[1719017757095,20.0,133.81,133.77,23.8073]
[1719017757291,20.0,133.81,133.78,7.6448]
[1719017757806,20.0,133.82,133.78,7.6448]
[1719017759009,27.4728,133.82,133.78,7.6448]
[1719017759613,20.0,133.82,133.78,0.17]
[1719017759827,8.3524401,133.83,133.78,7.8148]
[1719017760007,20.0,133.82,133.78,7.8148]
[1719017761033,27.4727,133.82,133.78,7.8148]
[1719017761323,20.0,133.82,133.78,7.8148]
[1719017761525,27.4727,133.82,133.78,0.34]
[1719017761696,27.4728,133.82,133.78,0.34]
[1719017761892,27.4728,133.82,133.75,25.1481]
[1719017761893,20.0,133.82,133.75,6.457]
[1719017762200,7.4742,133.8,133.75,13.9332]
[1719017762598,7.4742,133.8,133.76,7.476]
[1719017763224,7.4742,133.8,133.75,6.457]
[1719017763225,29.1498401,133.83,133.78,7.4745]
[1719017763433,20.0,133.82,133.77,7.4753]
[1719017763823,7.4734,133.81,133.76,7.4758]
[1719017764518,7.4739,133.8,133.76,7.4758]
[1719017765629,7.4739,133.8,133.75,7.4763]
[1719017766122,7.4735,133.81,133.76,7.4759]
[1719017767142,7.4735,133.81,133.71,37.3922]
[1719017767143,7.4768,133.75,133.7,23.8105]
[1719017767351,7.4763,133.76,133.71,7.4788]
[1719017767521,27.4767,133.75,133.7,23.8103]
[1719017767723,20.0,133.75,133.71,7.4788]
[1719017768331,28.27,133.79,133.7,16.3311]
[1719017768543,20.0,133.78,133.74,7.4767]
[1719017768833,6.3073,133.8,133.7,16.3311]
[1719017768834,13.7812,133.8,133.75,7.4763]
[1719017769035,20.0,133.79,133.75,7.4763]
[1719017769622,20.0,133.79,133.76,7.4759]
[1719017769830,7.4739,133.8,133.76,7.4759]
[1719017772143,7.4756,133.77,133.73,7.4777]
[1719017772446,18.6847,133.8,133.73,7.4777]
[1719017772648,20.0,133.79,133.73,7.4777]
[1719017772839,7.4751,133.78,133.73,7.4777]
[1719017774126,7.4751,133.78,133.74,7.4771]
[1719017774527,27.4746,133.79,133.74,7.4771]
[1719017774734,7.4746,133.79,133.74,7.4771]
[1719017776247,7.4746,133.79,133.75,7.4765]
[1719017776547,20.0,133.81,133.72,0.34]
[1719017776548,7.4741,133.8,133.74,0.34]
[1719017776751,20.0,133.79,133.75,0.17]
[1719017776934,20.0,133.79,133.72,0.34]
[1719017777136,20.0,133.79,133.72,0.17]
[1719017777336,20.0,133.79,133.71,0.34]
[1719017777539,20.0,133.79,133.75,7.4764]
[1719017777953,7.4741,133.8,133.76,7.476]
[1719017778256,7.4741,133.8,133.75,7.4763]
[1719017778555,7.4745,133.79,133.74,7.817]
[1719017779343,7.474,133.8,133.75,7.4764]
[1719017780643,7.4735,133.81,133.76,15.2578]
[1719017780848,20.0,133.8,133.77,0.34]
[1719017781047,20.0,133.8,133.77,0.17]
[1719017781048,27.4739,133.8,133.77,0.17]
[1719017781341,27.4739,133.8,133.76,22.7333]
[1719017781660,7.4754,133.78,133.73,22.7351]
[1719017781855,7.4754,133.78,133.74,7.477]
[1719017783435,9.41,133.76,133.74,7.477]
[1719017783637,20.0,133.8,133.73,15.2578]
[1719017783842,9.41,133.77,133.74,7.4769]
[1719017784256,9.41,133.76,133.74,7.4769]
[1719017785360,7.4751,133.78,133.74,7.4769]
[1719017785561,7.4751,133.78,133.73,22.7352]
[1719017785748,7.4751,133.78,133.74,7.4769]
[1719017785949,7.4751,133.78,133.75,0.17]
[1719017786661,7.4758,133.77,133.73,15.2578]
[1719017787764,7.4758,133.77,133.73,22.7355]
[1719017789071,34.5911,133.8,133.71,6.0656]
[1719017789241,34.5911,133.8,133.69,16.4316]
[1719017789242,7.4769,133.75,133.69,16.4316]
[1719017789668,7.4769,133.75,133.71,7.4785]
[1719017790071,7.4769,133.75,133.7,7.4793]
[1719017790867,7.4769,133.75,133.71,7.4787]
[1719017791452,28.23,133.77,133.72,7.478]
[1719017791657,20.0,133.76,133.71,0.34]
[1719017791858,20.0,133.76,133.72,7.478]
[1719017794569,20.0,133.76,133.73,7.4777]
[1719017794867,20.0,133.77,133.74,0.17]
[1719017795060,20.0,133.77,133.74,7.647]
[1719017795371,7.4751,133.78,133.74,7.647]
[1719017796161,7.4745,133.79,133.74,7.647]
[1719017796365,7.4745,133.79,133.75,7.4765]
[1719017796974,7.4745,133.79,133.74,7.6469]
[1719017798271,7.4751,133.78,133.74,7.6469]
[1719017800370,7.4745,133.79,133.74,7.6469]
[1719017802071,18.682,133.82,133.75,24.0461]
[1719017802273,27.4733,133.81,133.76,7.6455]
[1719017802576,7.4756,133.77,133.72,13.786]
[1719017802757,7.4756,133.77,133.73,0.17]
[1719017803158,7.4756,133.77,133.73,7.6476]
[1719017803770,7.4751,133.78,133.73,7.6472]
[1719017804168,7.4751,133.78,133.74,7.4771]
[1719017804955,7.4751,133.78,133.73,7.6475]
[1719017805486,20.0,133.81,133.74,7.4769]
[1719017805688,9.41,133.77,133.75,7.6464]
[1719017806283,9.41,133.78,133.75,7.6464]
[1719017810296,9.41,133.77,133.75,0.17]
[1719017810601,7.4751,133.78,133.75,0.34]
[1719017810769,9.41,133.77,133.75,0.34]
[1719017811393,9.41,133.78,133.75,0.34]
[1719017813383,9.41,133.77,133.75,0.34]
[1719017815475,9.41,133.77,133.75,7.8166]
[1719017816312,9.41,133.77,133.75,0.34]
[1719017816491,9.41,133.77,133.74,7.4769]
[1719017816695,9.41,133.76,133.74,7.4769]
[1719017820830,9.41,133.76,133.73,0.34]
[1719017820831,9.41,133.75,133.71,24.0482]
[1719017820988,9.41,133.73,133.69,6.6495]
[1719017821311,37.64,133.77,133.69,6.6495]
[1719017821312,9.41,133.72,133.7,7.4794]
[1719017822784,9.41,133.72,133.69,14.1292]
[1719017823702,9.41,133.72,133.69,7.4797]
[1719017825231,9.41,133.72,133.68,15.7209]
[1719017825411,9.41,133.73,133.71,7.4786]
[1719017826000,9.41,133.73,133.72,7.4783]
[1719017826410,9.41,133.73,133.7,7.4791]
[1719017826619,9.41,133.72,133.7,7.4791]
[1719017826826,9.41,133.72,133.71,7.4788]
[1719017827046,7.4768,133.75,133.71,7.4788]
[1719017827047,7.4762,133.76,133.71,7.4788]
[1719017827246,9.41,133.73,133.71,7.4788]
[1719017827442,7.4762,133.76,133.71,7.4788]
[1719017827756,25.3115,133.81,133.74,7.4771]
[1719017827921,9.41,133.75,133.74,7.4771]
[1719017828121,9.41,133.75,133.73,7.4776]
[1719017828329,9.41,133.74,133.72,7.6479]
[1719017828558,9.41,133.74,133.73,7.4777]
[1719017830154,9.41,133.74,133.72,7.478]
[1719017830320,9.41,133.74,133.71,7.6484]
[1719017832148,9.41,133.74,133.72,7.4782]
[1719017832726,9.41,133.73,133.72,7.4782]
[1719017833545,9.41,133.73,133.68,34.4218]
[1719017833747,9.41,133.71,133.7,7.4791]
[1719017834050,9.41,133.71,133.68,7.4803]
[1719017834221,7.4779,133.73,133.68,7.4803]
[1719017834550,25.3196,133.76,133.7,7.4793]
[1719017834551,20.0,133.72,133.7,7.4793]
[1719017834729,9.41,133.71,133.69,7.4797]
[1719017834925,9.41,133.7,133.68,7.4802]
[1719017835124,9.41,133.7,133.69,7.4799]
[1719017835325,9.41,133.7,133.68,7.4803]
[1719017835539,9.41,133.7,133.66,18.7037]
[1719017835738,9.41,133.7,133.69,7.4799]
[1719017835940,9.41,133.72,133.7,7.4792]
[1719017838951,9.41,133.72,133.69,7.4797]
[1719017840823,16.8885,133.72,133.67,16.8909]
[1719017841029,9.41,133.7,133.66,0.34]
[1719017841850,9.41,133.71,133.69,7.4798]
[1719017842347,12.69563861,133.76,133.7,7.4793]
[1719017842348,9.41,133.72,133.7,7.4793]
[1719017844954,9.41,133.72,133.69,7.4797]
[1719017846650,9.41,133.71,133.69,7.4797]
[1719017847355,9.41,133.72,133.69,7.4797]
[1719017848857,9.41,133.72,133.68,7.8203]
[1719017849050,9.41,133.72,133.69,0.17]
[1719017849248,9.41,133.71,133.69,0.34]
[1719017850263,9.41,133.71,133.69,7.8199]
[1719017851438,9.41,133.72,133.69,7.8199]
[1719017851851,9.41,133.72,133.7,7.4791]
[1719017852054,22.2813,133.8,133.73,7.4776]
[1719017852233,7.4752,133.78,133.73,7.4774]
[1719017852557,9.41,133.75,133.73,7.4774]
[1719017853328,9.41,133.76,133.73,7.4774]
[1719017857752,9.41,133.74,133.7,16.1057]
[1719017857945,9.41,133.73,133.7,16.1057]
[1719017858138,9.41,133.72,133.7,16.1057]
[1719017859463,9.41,133.72,133.7,23.585]
[1719017859654,28.26785148,133.8,133.71,0.17]
[1719017859856,9.41,133.74,133.73,7.4775]
[1719017860056,37.64,133.77,133.71,0.17]
[1719017860257,9.41,133.73,133.71,0.34]
[1719017860562,9.41,133.74,133.7,16.1057]
[1719017860783,9.41,133.74,133.71,0.34]
[1719017861849,9.41,133.74,133.71,7.8186]
[1719017864359,16.8874,133.74,133.71,0.34]
[1719017864966,9.41,133.74,133.71,0.34]
[1719017873151,16.8872,133.74,133.71,0.34]
[1719017873351,9.41,133.73,133.71,0.34]
[1719017874071,7.4768,133.75,133.71,0.34]
[1719017874250,9.41,133.73,133.71,0.34]
[1719017874452,9.41,133.73,133.71,7.8188]
[1719017874772,9.41,133.72,133.68,7.48]
[1719017874956,9.41,133.71,133.69,7.4798]
[1719017875347,9.41,133.71,133.68,7.4803]
[1719017876247,9.41,133.71,133.69,7.4799]
[1719017877074,41.5017,133.75,133.65,34.0646]
[1719017877261,9.41,133.68,133.66,7.4812]
[1719017878548,9.41,133.68,133.67,7.4811]
[1719017880764,9.41,133.68,133.66,7.4812]
[1719017881676,9.41,133.68,133.67,7.4811]
[1719017881852,7.4775,133.74,133.69,7.4797]
[1719017882050,9.41,133.7,133.69,7.4797]
[1719017882472,9.41,133.71,133.7,7.4794]
[1719017882873,22.8091,133.75,133.7,7.4791]
[1719017883074,9.41,133.71,133.67,18.7016]
[1719017883296,9.41,133.71,133.68,0.17]
[1719017883964,9.41,133.71,133.69,7.4798]
[1719017885786,9.41,133.71,133.68,7.6504]
[1719017885959,9.41,133.71,133.68,7.4804]
[1719017886467,9.41,133.71,133.69,7.4799]
[1719017888590,9.41,133.71,133.68,7.4802]
[1719017889569,9.41,133.71,133.69,7.4799]
[1719017890391,9.41,133.71,133.68,7.4802]
[1719017891181,30.2859,133.75,133.7,7.4789]
[1719017891495,37.64,133.77,133.71,0.17]
[1719017891496,7.4756,133.77,133.71,0.17]
[1719017891667,16.8867,133.75,133.71,7.8186]
[1719017891865,9.41,133.75,133.72,7.4782]
[1719017892084,9.41,133.74,133.72,7.4782]
[1719017892668,9.41,133.74,133.71,7.8185]
[1719017892865,9.41,133.74,133.72,7.478]
[1719017893080,9.41,133.75,133.72,7.478]
[1719017893390,7.4801,133.69,133.65,15.3594]
[1719017893615,7.4801,133.69,133.63,9.41]
[1719017893616,9.41,133.68,133.64,7.4823]
[1719017894095,9.41,133.67,133.62,31.8895]
[1719017894279,16.1841,133.73,133.67,7.4809]
[1719017894480,9.41,133.69,133.67,7.481]
[1719017895166,16.1841,133.73,133.67,7.481]
[1719017895369,20.0,133.72,133.64,28.1159]
[1719017895587,20.0,133.72,133.66,7.4814]
[1719017895588,9.41,133.69,133.66,7.4814]
[1719017896968,7.479,133.71,133.66,7.4814]
[1719017897185,9.41,133.69,133.66,7.4814]
[1719017897575,9.41,133.69,133.65,7.482]
[1719017897763,20.0,133.72,133.65,7.482]
[1719017897764,9.41,133.68,133.65,7.482]
[1719017897970,7.4796,133.7,133.66,7.4814]
[1719017897971,9.41,133.69,133.66,7.4814]
[1719017898889,7.4789,133.71,133.67,7.481]
[1719017899093,9.41,133.69,133.67,7.481]
[1719017899294,9.41,133.69,133.66,7.4814]
[1719017899671,9.41,133.69,133.65,7.822]
[1719017900196,9.41,133.68,133.65,0.34]
[1719017900383,16.8909,133.68,133.63,7.4832]
[1719017900585,9.41,133.67,133.64,7.4826]
[1719017901200,9.41,133.66,133.64,7.4826]
[1719017902679,7.4796,133.7,133.65,7.4821]
[1719017902899,9.41,133.68,133.65,7.4821]
[1719017903201,9.41,133.68,133.66,7.4816]
[1719017903499,7.479,133.71,133.66,7.4816]
[1719017903685,9.41,133.69,133.66,7.4816]
[1719017904081,7.479,133.71,133.66,7.4816]
[1719017904284,9.41,133.68,133.65,7.6519]
[1719017906692,9.41,133.68,133.65,7.4819]
[1719017913010,9.41,133.68,133.64,7.8226]
[1719017913413,9.41,133.67,133.64,7.8226]
[1719017914409,9.41,133.68,133.65,7.4821]
[1719017914714,27.4797,133.7,133.66,7.4815]
[1719017914911,9.41,133.69,133.65,7.4821]
[1719017915117,9.41,133.68,133.65,7.4821]
[1719017916200,9.41,133.68,133.66,7.4815]
[1719017916720,9.41,133.68,133.65,7.4819]
[1719017919626,27.4797,133.7,133.65,7.4819]
[1719017919926,9.41,133.68,133.65,7.4819]
[1719017920729,27.4797,133.7,133.65,7.4819]
[1719017920939,9.41,133.68,133.65,7.4819]
[1719017923038,9.41,133.69,133.66,7.4814]
[1719017923236,13.5465734,133.72,133.68,7.4805]
[1719017923439,9.41,133.7,133.65,9.41]
[1719017923648,9.41,133.69,133.66,0.17]
[1719017923955,9.41,133.69,133.66,0.34]
[1719017924830,9.41,133.69,133.66,7.8215]
[1719017927459,9.41,133.69,133.67,7.481]
[1719017931249,7.4785,133.72,133.68,7.4805]
[1719017931440,9.41,133.69,133.68,7.4805]
[1719017932756,29.59853791,133.73,133.69,7.4799]
[1719017932952,9.41,133.71,133.69,7.4799]
[1719017933256,9.41,133.7,133.68,7.4803]
[1719017933636,9.41,133.69,133.68,7.4803]
[1719017934356,27.4783,133.72,133.68,7.4803]
[1719017934543,9.41,133.7,133.68,7.4803]
[1719017934934,20.0,133.72,133.63,18.7082]
[1719017935134,9.41,133.68,133.65,7.4818]
[1719017935451,9.41,133.68,133.66,7.4816]
[1719017935650,9.41,133.67,133.66,7.4816]
[1719017935829,9.41,133.67,133.65,7.4819]
[1719017936231,9.41,133.68,133.65,7.4819]
[1719017936450,9.41,133.68,133.66,7.4816]
[1719017937734,9.41,133.69,133.66,7.4816]
[1719017938560,27.4784,133.72,133.67,7.481]
[1719017938861,9.41,133.69,133.66,0.34]
[1719017939036,27.4784,133.72,133.67,7.4808]
[1719017939232,9.41,133.69,133.66,0.17]
[1719017939456,20.0,133.72,133.65,28.4545]
[1719017939761,9.41,133.7,133.67,7.4808]
[1719017941256,27.4784,133.72,133.66,7.4815]
[1719017941257,9.41,133.69,133.66,7.4815]
[1719017941458,9.41,133.69,133.67,0.34]
[1719017942957,27.4785,133.72,133.67,7.821]
[1719017943132,9.41,133.69,133.67,7.821]
[1719017943757,9.41,133.69,133.67,0.34]
[1719017943938,9.41,133.69,133.65,7.482]
[1719017944338,9.41,133.68,133.66,0.17]
[1719017944845,7.479,133.71,133.66,7.6511]
[1719017945159,9.41,133.68,133.66,7.6511]
[1719017952958,7.4794,133.7,133.66,7.6511]
[1719017952959,7.4791,133.71,133.66,7.6511]
[1719017953266,9.41,133.69,133.66,7.6511]
[1719017954156,9.41,133.69,133.67,7.481]
[1719017954866,9.41,133.69,133.66,7.6513]
[1719017956076,9.41,133.7,133.67,7.481]
[1719017956463,27.4785,133.72,133.67,7.481]
[1719017956763,9.41,133.7,133.67,7.481]
[1719017956965,27.4785,133.72,133.67,7.481]
[1719017957166,9.41,133.7,133.67,7.481]
[1719017957885,9.41,133.69,133.67,7.481]
[1719017958268,9.41,133.69,133.66,7.6514]
[1719017958875,9.41,133.69,133.66,0.17]
[1719017960491,9.41,133.69,133.66,7.6515]
[1719017961504,9.41,133.69,133.65,7.482]
[1719017961663,7.4797,133.7,133.62,41.1888]
[1719017961664,9.41,133.66,133.62,29.963]
[1719017962085,9.41,133.66,133.63,7.4832]
[1719017962475,9.41,133.67,133.64,7.4827]
[1719017964592,9.41,133.68,133.64,7.4827]
[1719017965789,7.4801,133.69,133.64,7.4827]
[1719017965971,36.8905,133.68,133.65,0.17]
[1719017966170,9.41,133.67,133.63,17.063]
[1719017966370,9.41,133.67,133.64,0.17]
[1719017968673,9.41,133.67,133.64,7.6527]
[1719017969393,7.4802,133.69,133.64,7.6527]
[1719017969585,20.0,133.68,133.64,7.6527]
[1719017969897,29.41,133.68,133.65,7.4821]
[1719017970697,29.41,133.68,133.64,7.6525]
[1719017970899,74.9650592,133.82,133.64,0.17]
[1719017970900,5.93643791,133.73,133.64,0.17]
[1719017971076,16.8873,133.74,133.7,7.4793]
[1719017971276,7.4769,133.75,133.7,16.8893]
[1719017971488,7.4759,133.77,133.72,16.8881]
[1719017971799,20.0,133.76,133.72,16.8881]
[1719017971973,7.4757,133.77,133.72,16.8881]
[1719017972170,16.8857,133.77,133.72,16.8881]
[1719017972589,7.4761,133.76,133.72,16.8881]
[1719017972996,7.4761,133.76,133.71,7.6486]
[1719017973199,7.4766,133.75,133.71,17.0586]
[1719017973418,7.4766,133.75,133.71,9.58]
[1719017974699,7.4766,133.75,133.71,17.0587]
[1719017976713,16.8862,133.76,133.71,17.0587]
[1719017977720,16.8862,133.76,133.72,7.4782]
[1719017979127,9.41,133.76,133.72,7.4782]
[1719017979305,9.41,133.76,133.73,7.4777]
[1719017979505,9.41,133.77,133.73,7.4777]
[1719017980239,16.8855,133.77,133.73,7.4777]
[1719017980517,9.41,133.76,133.73,7.4777]
[1719017981725,18.6834,133.81,133.73,7.4777]
[1719017981726,7.4751,133.78,133.73,7.4777]
[1719017981900,9.41,133.77,133.74,7.6471]
[1719017982422,9.41,133.77,133.74,0.17]
[1719017983948,9.41,133.77,133.73,7.6475]
[1719017983949,16.8857,133.77,133.73,0.17]
[1719017984223,9.41,133.76,133.72,29.9895]
[1719017985241,16.886,133.76,133.72,29.9895]
[1719017986133,9.41,133.76,133.72,29.9895]
[1719017986835,16.8867,133.75,133.71,7.4786]
[1719017987018,9.41,133.74,133.7,7.4791]
[1719017987431,9.41,133.74,133.69,15.8604]
[1719017987432,9.41,133.77,133.69,23.3401]
[1719017987643,9.41,133.73,133.7,7.4794]
[1719017987832,7.4747,133.79,133.71,9.41]
[1719017988017,29.41,133.78,133.76,7.4757]
[1719017988422,9.41,133.78,133.75,7.4763]
[1719017989950,16.885,133.78,133.74,7.4769]
[1719017990239,16.885,133.78,133.73,7.6474]
[1719017990539,9.41,133.77,133.73,7.6474]
[1719017991944,9.41,133.77,133.74,7.647]
[1719017993930,7.4746,133.79,133.74,7.647]
[1719017994243,9.41,133.77,133.74,7.647]
[1719017994624,9.41,133.78,133.74,7.647]
[1719017995719,27.92772066,133.82,133.74,0.17]
[1719017995939,27.4735,133.81,133.76,7.4758]
[1719017996136,9.41,133.8,133.76,7.4758]
[1719017996939,27.4735,133.81,133.76,9.41]
[1719017996940,20.0,133.81,133.76,9.41]
[1719017997133,7.4727,133.82,133.78,7.4746]
[1719017997446,9.41,133.81,133.77,7.6452]
[1719017997627,7.4727,133.82,133.77,7.6452]
[1719017997947,9.41,133.81,133.77,7.6452]
[1719017998126,9.41,133.81,133.78,7.4748]
[1719017998638,9.41,133.81,133.77,7.8153]
[1719017999625,9.41,133.8,133.76,7.4759]
[1719017999846,9.41,133.78,133.72,22.5114]
[1719018000047,9.41,133.78,133.75,7.4762]
[1719018000740,7.4734,133.81,133.77,7.4753]
[1719018000942,9.41,133.79,133.77,7.4753]
[1719018001128,7.4728,133.82,133.77,7.4753]
[1719018001129,9.41,133.8,133.77,7.4753]
[1719018001332,9.41,133.79,133.75,7.4762]
[1719018001539,9.41,133.78,133.74,7.4769]
[1719018001732,9.41,133.77,133.74,7.4769]
[1719018002134,16.8856,133.77,133.72,29.9894]
[1719018002326,9.41,133.75,133.72,23.3384]
[1719018002527,9.41,133.75,133.73,7.4777]
[1719018002732,9.41,133.75,133.72,15.8604]
[1719018002733,9.41,133.76,133.72,23.3384]
[1719018003146,9.41,133.75,133.73,7.4776]
[1719018003341,23.8059,133.8,133.75,7.4761]
[1719018003643,9.41,133.78,133.75,7.4761]
[1719018003849,32.49989087,133.84,133.72,15.8604]
[1719018004031,9.41,133.8,133.77,7.4751]
[1719018005045,9.41,133.8,133.76,7.4758]
[1719018005549,9.41,133.77,133.73,7.4775]
[1719018006349,9.41,133.76,133.73,7.4775]
[1719018007251,9.41,133.76,133.72,15.8604]
[1719018007430,9.41,133.75,133.7,6.1505]
[1719018007632,16.8866,133.75,133.71,7.4786]
[1719018008153,9.41,133.75,133.71,7.4786]
[1719018009358,9.41,133.74,133.71,7.4786]
[1719018010456,7.4778,133.73,133.69,7.4799]
[1719018010637,9.41,133.72,133.69,7.4799]
[1719018011538,7.4803,133.69,133.64,16.8927]
[1719018011739,9.41,133.67,133.64,16.8925]
[1719018011954,9.41,133.65,133.64,9.41]
[1719018013942,9.41,133.66,133.61,28.121]
[1719018014745,9.41,133.66,133.64,7.4827]
[1719018015251,9.41,133.66,133.62,7.6539]
[1719018015450,9.41,133.65,133.62,7.4839]
[1719018015851,7.4807,133.68,133.61,9.41]
[1719018016057,7.4807,133.68,133.63,7.4828]
[1719018016058,9.41,133.66,133.63,7.4828]
[1719018019083,31.00363701,133.73,133.65,7.4822]
[1719018019255,20.0,133.71,133.67,7.4807]
[1719018019580,9.41,133.7,133.67,7.4807]
[1719018019872,9.41,133.68,133.61,9.41]
[1719018020063,37.64,133.7,133.6,15.9893]
[1719018020064,9.41,133.65,133.6,15.9893]
[1719018020245,9.41,133.65,133.63,7.4832]
[1719018020449,7.4808,133.68,133.62,9.41]
[1719018020753,9.41,133.67,133.62,9.41]
[1719018021860,9.41,133.67,133.64,7.4827]
[1719018022061,9.41,133.67,133.62,9.41]
[1719018022264,20.0,133.69,133.66,7.4811]
[1719018022469,9.41,133.68,133.65,7.482]
[1719018023541,9.41,133.68,133.64,7.4825]
[1719018023964,16.8908,133.68,133.63,17.0631]
[1719018024169,9.41,133.67,133.63,7.4831]
[1719018024460,9.41,133.66,133.63,7.4831]
[1719018025446,9.41,133.67,133.64,7.4827]
[1719018025653,9.41,133.66,133.63,7.483]
[1719018026246,9.41,133.67,133.63,7.483]
[1719018028865,9.41,133.7,133.6,15.8193]
[1719018029084,9.41,133.7,133.61,7.4841]
[1719018029085,9.41,133.64,133.61,7.4841]
[1719018029361,9.41,133.64,133.6,15.8193]
[1719018029566,9.41,133.64,133.61,7.4843]
[1719018030360,9.41,133.63,133.61,7.4843]
[1719018031372,9.41,133.63,133.62,7.4839]
[1719018031973,9.41,133.63,133.58,28.1243]
[1719018032855,9.41,133.63,133.6,7.4848]
[1719018033671,9.41,133.62,133.6,7.4848]
[1719018034080,9.41,133.63,133.6,7.4848]
[1719018034454,9.41,133.63,133.61,7.4843]